Cogmind - Beta 13 @@@ ROGUE MODE // 2024.04.07 @ 23:41:59 Player: Camoedine Result: Destroyed by B-75 Beast with Magnetic Acceleration Cannon Performance ------------- Evolutions (4) 2000 Regions Visited (8) 1600 Robots Destroyed (71) 355 Value Destroyed (2183) 2183 Prototype IDs (1) 20 Alien Tech Used (0) 0 Bonus (15) 15 TOTAL SCORE: 6173 Bonus ------- High Alert Combat Kills 11 Follower Combat Kills 30 Friendly Fire -26 Cogmind --------- Core Integrity 0/850 Matter 267/300 Energy 100/100 System Corruption 23% Temperature Cool (12) Movement Core (50) Location -6/Extension Parts ------- > --- POWER (2) -------- (None) > --- PROPULSION (4) --- (None) > --- UTILITY (6) ------ (None) > --- WEAPON (3) ------- (None) > --- INVENTORY (5) ---- Antimatter Reactor Heavy Flak Cannon Heavy Flak Cannon Heavy Rocket Launcher Heavy Rocket Launcher Peak State ------------ > --- POWER ------------ Improved Deuterium Engine Light Angular Momentum Engine > --- PROPULSION ------- Carbon-fiber Leg Carbon-fiber Leg Carbon-fiber Leg Improved Carbon-fiber Leg > --- UTILITY ---------- Medium Storage Unit Enhanced Optical Array Sensor Array Improved Signal Interpreter Heavy Reflective Plating > --- WEAPON ----------- Heavy Battle Rifle Heavy Battle Rifle Heavy Battle Rifle > --- INVENTORY -------- Light Angular Momentum Engine Light Angular Momentum Engine Antimatter Reactor Antimatter Reactor Carbon-fiber Leg Titanium Leg Heavy Battle Rifle Battle Cannon Grenade Launcher Rocket Launcher [Rating: 57] Favorites ----------- Power Light Angular Momentum Engine Engine Light Angular Momentum Engine Power Core Light Nuclear Core Reactor Hybrid Antimatter Reactor Propulsion Aluminum Leg Treads Light Treads Leg Aluminum Leg Wheel Compact Wheel Hover Unit Backup Propulsion III Utility Medium Storage Unit Device Sensor Array Storage Medium Storage Unit Processor Enhanced Optical Array Protection Hardened Light Armor Plating Weapon Heavy Battle Rifle Energy Gun Backup Laser III Ballistic Gun Heavy Battle Rifle Ballistic Cannon Light Cannon Launcher Rocket Launcher Impact Weapon Mace Build | -11 -10 -9 -8 -7 -7 -7 -6 -6 ------- Run | Yrd Mat Mat Mat Fac Was Fac Fac Ext Slots Evolved 8 | . . 2 2 2 . . 2 . Power 1 | . . . . . . . 1 . Propulsion 2 | . . 2 . . . . . . Utility 4 | . . . 2 1 . . 1 . Weapon 1 | . . . . 1 . . . . Parts Attached 90 | 6 14 19 1 4 17 5 19 5 Power 18 | 1 3 2 1 . 3 2 5 1 Engine 16 | 1 3 2 1 . 2 1 5 1 Core 1 | . . . . . . 1 . . Reactor 1 | . . . . . 1 . . . Propulsion 33 | 2 6 9 . 1 8 1 5 1 Treads 4 | . . . . . 1 . 2 1 Leg 27 | . 6 9 . 1 7 1 3 . Wheel 2 | 2 . . . . . . . . Hover . | . . . . . . . . . Flight . | . . . . . . . . . Utility 16 | 1 2 4 . 2 3 . 3 1 Device 3 | . 1 1 . 1 . . . . Storage 4 | 1 1 1 . . 1 . . . Processor 3 | . . . . 1 1 . 1 . Hackware . | . . . . . . . . . Protection 6 | . . 2 . . 1 . 2 1 Artifact . | . . . . . . . . . Weapon 23 | 2 3 4 . 1 3 2 6 2 Energy Gun . | . . . . . . . . . Energy Cannon . | . . . . . . . . . Ballistic Gun 13 | 2 2 . . 1 3 2 3 . Ballistic Cannon 3 | . 1 . . . . . 1 1 Launcher 6 | . . 4 . . . . 2 . Special Weapon . | . . . . . . . . . Impact Weapon 1 | . . . . . . . . 1 Slashing Weapon . | . . . . . . . . . Piercing Weapon . | . . . . . . . . . Special Melee Weapon . | . . . . . . . . . Unidentified Prototypes 1 | . . . . . . . 1 . Parts Lost 45 | . 2 7 4 . . . 22 10 Power 11 | . 1 2 1 . . . 5 2 Propulsion 14 | . . 3 1 . . . 6 4 Utility 9 | . . 2 . . . . 6 1 Weapon 11 | . 1 . 2 . . . 5 3 Highest Loss Streak 12 | . 1 3 4 . . . 12 6 To Critical Strikes . | . . . . . . . . . Average Slot Usage (%) 81 | . 91 97 57 53 79 100 60 57 Engine 9 | . 14 10 8 . 5 5 11 10 Leg 23 | . 15 42 26 23 16 30 14 17 Wheel 3 | . 12 . . . . . . . Device 5 | . 6 7 . 7 7 7 4 . Storage 8 | . 14 11 9 7 6 7 4 . Processor 4 | . . . . 7 14 15 4 . Protection 2 | . . 2 . . 2 7 3 5 Ballistic Gun 15 | . 25 8 . 7 16 23 9 11 Ballistic Cannon 3 | . 2 8 . . . . 1 5 Launcher 1 | . . 4 13 . . . 2 . Naked Turns 3 | . . . . . . . . 3 Heaviest Build 57 | 13 18 28 21 12 37 38 57 44 Greatest Support 70 | 32 32 40 30 37 70 63 63 47 Greatest Overweight (x) 13 | 1 . . . . 5 . 13 2 Average Overweight (x) . | . . . . . . . . 1 Largest Inventory Capacity 10 | 8 10 10 10 10 10 10 10 5 Average Capacity 9 | 7 9 10 10 10 9 10 8 5 Most Carried 10 | 5 10 10 10 9 10 10 10 5 Average Carried 8 | 3 8 9 9 6 8 9 7 4 Final Capacity 10 | 8 10 10 10 10 10 10 5 5 Final Carried 10 | 4 10 10 10 6 10 10 4 5 Class Distribution -------------------- 29% | Mutant 29% | Scavenger-Mutant 24% | Scavenger-Skirmisher 8% | Scavenger-Tank Dominant Class ---------------- Mutant | -10/Materials Scavenger-Mutant | -9/Materials Scavenger-Mutant | -8/Materials Scavenger-Mutant | -7/Factory Scavenger-Skirmisher | -7/Waste Scavenger-Skirmisher | -7/Factory Scavenger-Mutant | -6/Factory Scavenger-Tank | -6/Extension Resources | -11 -10 -9 -8 -7 -7 -7 -6 -6 ----------- Run | Yrd Mat Mat Mat Fac Was Fac Fac Ext Matter Collected 2255 | 189 424 356 67 . 449 167 537 66 Remotely . | . . . . . . . . . Salvage Created 2848 | . 643 721 . . 550 211 591 132 Parts 116 | . 36 40 . . 7 10 17 6 Haulers Intercepted 2 | . . 2 . . . . . . Recyclers Shooed 4 | . 2 2 . . . . . . Parts Field Recycled . | . . . . . . . . . Retrieved Matter . | . . . . . . . . . Parts Self-Destructed . | . . . . . . . . . Prevented . | . . . . . . . . . Kills | -11 -10 -9 -8 -7 -7 -7 -6 -6 ------- Run | Yrd Mat Mat Mat Fac Was Fac Fac Ext Combat Hostiles Destroyed 54 | . 14 18 . . 2 4 14 2 Guns 34 | . 14 8 . . 2 4 5 1 Cannons 14 | . . 8 . . . . 5 1 AOE 6 | . . 2 . . . . 4 . Classes Destroyed 13 | . 6 2 . . 1 . 3 1 Worker 1 | . . . . . . . 1 . Builder 1 | . . . . . . . . 1 Hauler 2 | . . 2 . . . . . . Recycler 7 | . 3 4 . . . . . . Mechanic 1 | . 1 . . . . . . . Operator 1 | . 1 . . . . . . . Watcher 4 | . 2 1 . . . . 1 . Swarmer 14 | . 6 8 . . . . . . Grunt 27 | . 8 7 . . . 2 9 1 Brawler 4 | . . . . . . . 4 . Duelist 1 | . . . . . . . 1 . Sentry 6 | . . 3 . . . 2 . 1 Compactor 2 | . . . . . 2 . . . Best Kill Streak 8 | . 4 8 . . 2 2 5 3 Combat Bots Only 7 | . 3 7 . . 2 2 4 2 Max Kills in Single Turn 2 | . 1 1 . . 1 1 2 2 Gunslinging . | . . . . . . . . . Exploded 2 | . . 1 . . . . 2 . Melee . | . . . . . . . . . Uniques/NPCs Destroyed . | . . . . . . . . . Combat | -11 -10 -9 -8 -7 -7 -7 -6 -6 -------- Run | Yrd Mat Mat Mat Fac Was Fac Fac Ext Hostile Shots Fired 722 | . 68 127 48 . . 76 142 261 Missed 257 | . 16 36 25 . . 40 28 112 Damage Taken 6501 | . 548 1122 379 . 16 377 2570 1489 Core 1328 | . 181 122 125 . . 39 325 536 Absorbed by Shields 85 | . . . . . . . 85 . Ignored by Resistances 120 | . . . . . . . 120 . Regen/Repaired (Parts) 18 | . . . . . . 18 . . Core Remaining (%) 73 | 100 27 69 77 . . 94 . . Volleys Fired 236 | . 66 74 . . 4 13 72 7 Largest 3 | . 2 2 . . 3 3 3 3 Hottest 99 | . 55 66 . . 99 99 99 98 Shots Fired 442 | . 123 142 . . 12 39 110 16 Gun 307 | . 115 63 . . 12 39 65 13 Cannon 112 | . 8 63 . . . . 38 3 Launcher 23 | . . 16 . . . . 7 . Special . | . . . . . . . . . Kinetic 419 | . 123 126 . . 12 39 103 16 Thermal . | . . . . . . . . . Explosive 23 | . . 16 . . . . 7 . Electromagnetic . | . . . . . . . . . Robot Hit Streak 16 | . 16 13 . . 6 5 13 3 Robot Miss Streak 5 | . 3 5 . . 1 3 3 3 Penetration Max . | . . . . . . . . . Secondary Targets 3 | . 1 . . . . . 1 1 Max Gunslinging Chain 1 | . 1 . . . . . 1 1 Shots Hit Robots 290 | . 82 91 . . 9 20 78 10 Core Hits 133 | . 39 36 . . 3 8 39 8 Critical Kills 1 | . . 1 . . . . . . Critical Parts Destroyed 1 | . . . . . . . 1 . Critical Strikes 4 | . . 2 . . . . 2 . Destroy 2 | . . 1 . . . . 1 . Blast 2 | . . 1 . . . . 1 . Melee Attacks . | . . . . . . . . . Impact . | . . . . . . . . . Slashing . | . . . . . . . . . Piercing . | . . . . . . . . . Sneak Attacks . | . . . . . . . . . Combat Hostiles . | . . . . . . . . . Follow-up Attacks . | . . . . . . . . . Damage Inflicted 5517 | . 841 1345 2 . 226 429 2423 251 Guns 2957 | . 771 318 . . 226 429 1005 208 Cannons 1516 | . 70 704 . . . . 702 40 Explosions 1014 | . . 301 . . . . 713 . Melee . | . . . . . . . . . Ramming 30 | . . 22 2 . . . 3 3 Kinetic 4473 | . 841 1022 . . 226 429 1707 248 Thermal 119 | . . . . . . . 119 . Explosive 895 | . . 301 . . . . 594 . Electromagnetic . | . . . . . . . . . Impact . | . . . . . . . . . Slashing . | . . . . . . . . . Piercing . | . . . . . . . . . Highest Corruption 23 | . . . 2 . . . 23 23 Average Corruption 19 | . . . 2 . . . 16 23 Corruption Purged . | . . . . . . . . . Corruption Blocked . | . . . . . . . . . Effects 45 | . . . . . . . 25 20 Message Errors 10 | . . . . . . . 4 6 Matter Fused 3 | . . . . . . . 2 1 Heat Flow Errors 4 | . . . . . . . 2 2 Energy Discharges 6 | . . . . . . . 3 3 Parts Fused 1 | . . . . . . . . 1 Data Loss (minor) 8 | . . . . . . . 5 3 Data Loss (major) 3 | . . . . . . . 3 . Misfires 1 | . . . . . . . . 1 Alerts 3 | . . . . . . . 1 2 Misdirections 2 | . . . . . . . 2 . Weapon Failures 4 | . . . . . . . 3 1 Overload Shots . | . . . . . . . . . Overflow Damage 83 | . . . . . . . 83 . Projectiles . | . . . . . . . . . Explosions 83 | . . . . . . . 83 . Melee . | . . . . . . . . . Knockbacks 12 | . . 8 . . . . 4 . Impact . | . . . . . . . . . Kinetic 11 | . . 8 . . . . 3 . Secondary 1 | . . . . . . . 1 . Self-Inflicted Damage 289 | . . 48 . . . . 241 . Shots 9 | . . 1 . . . . 8 . Rammed 1 | . . . . . . . . 1 Targets Rammed 5 | . . 2 1 . . . 1 1 Kicked 4 | . . 2 1 . . . 1 . Crushed . | . . . . . . . . . Highest Temperature 369 | . 42 66 4 . 36 188 369 297 Average Temperature 87 | . 19 22 4 . 18 68 128 68 Received Heat Transfer 2331 | . 231 363 135 . . 126 823 653 Effects 6 | . . . . . . . 6 . Shutdowns 2 | . . . . . . . 2 . Interference 2 | . . . . . . . 2 . Short Circuit 2 | . . . . . . . 2 . Siege Activations . | . . . . . . . . . Robots Corrupted . | . . . . . . . . . Combat Hostiles . | . . . . . . . . . Parts Fried . | . . . . . . . . . Impact Corruptions . | . . . . . . . . . Robots Melted . | . . . . . . . . . Combat Hostiles . | . . . . . . . . . Parts Melted . | . . . . . . . . . Heat Transferred 100 | . . . . . . . 100 . Parts Sabotaged . | . . . . . . . . . Parts Stolen . | . . . . . . . . . Parts Stripped . | . . . . . . . . . Power Chain Reactions . | . . . . . . . . . Alert | -11 -10 -9 -8 -7 -7 -7 -6 -6 ------- Run | Yrd Mat Mat Mat Fac Was Fac Fac Ext Peak Influence 414 | . 190 414 118 39 31 97 277 200 Initial 125 | . . 56 98 39 13 . 21 125 Average 101 | . 92 203 103 39 2 22 142 136 Maximum Alert Level 2 | . . 2 . . . . 1 1 Low Security (%) 84 | 100 100 44 100 100 100 100 69 86 Level 1 14 | . . 52 . . . . 30 13 Level 2 . | . . 3 . . . . . . Level 3 . | . . . . . . . . . Level 4 . | . . . . . . . . . Level 5 . | . . . . . . . . . High Security . | . . . . . . . . . Max Security . | . . . . . . . . . Squads Dispatched 14 | . 4 2 . . . 1 5 2 Investigation 2 | . 1 1 . . . . . . Extermination . | . . . . . . . . . Reinforcement 8 | . 3 1 . . . 1 1 2 Assault 1 | . . . . . . . 1 . Garrison 3 | . . . . . . . 3 . Intercept . | . . . . . . . . . Searches Triggered . | . . . . . . . . . Construction Impeded 1 | . . . . . . . 1 . Haulers Reinforced . | . . . . . . . . . Active Scanning Responses . | . . . . . . . . . Cargo Convoy Interrupts . | . . . . . . . . . Stealth | -11 -10 -9 -8 -7 -7 -7 -6 -6 --------- Run | Yrd Mat Mat Mat Fac Was Fac Fac Ext Distress Signals 5 | . 3 1 . . . . . 1 Communications Jammed . | . . . . . . . . . Distress Signals . | . . . . . . . . . Times Spotted 109 | . 30 23 11 . 6 5 21 13 Peak Tracking Total 10 | . 4 7 10 . 5 2 5 10 Tactical Retreats 5 | . 2 1 . . 1 . 1 . Traps | -11 -10 -9 -8 -7 -7 -7 -6 -6 ------- Run | Yrd Mat Mat Mat Fac Was Fac Fac Ext Traps Triggered 10 | . 2 4 1 1 . . 2 . Indirectly . | . . . . . . . . . Trap Hack Attempts . | . . . . . . . . . Triggered . | . . . . . . . . . Disarmed . | . . . . . . . . . Reprogrammed . | . . . . . . . . . Reused . | . . . . . . . . . Traps Extracted . | . . . . . . . . . Installed . | . . . . . . . . . Triggered . | . . . . . . . . . Machines | -11 -10 -9 -8 -7 -7 -7 -6 -6 ---------- Run | Yrd Mat Mat Mat Fac Was Fac Fac Ext Machines Disabled 5 | . . 2 . . . . 3 . Max in Single Turn 3 | . . 1 . . . . 3 . Garrison Access 1 | . . . . . . . 1 . Machines Repaired . | . . . . . . . . . Machines Dismantled . | . . . . . . . . . Machines Sabotaged . | . . . . . . . . . Overloaded Fab Kills . | . . . . . . . . . Hacking | -11 -10 -9 -8 -7 -7 -7 -6 -6 --------- Run | Yrd Mat Mat Mat Fac Was Fac Fac Ext Machines Accessed 1 | . 1 . . . . . . . Terminals . | . . . . . . . . . Fabricators . | . . . . . . . . . Repair Stations 1 | . 1 . . . . . . . Recycling Units . | . . . . . . . . . Scanalyzers . | . . . . . . . . . Garrison Access . | . . . . . . . . . Total Hacks 2 | . 2 . . . . . . . Successful 1 | . 1 . . . . . . . Failed 1 | . 1 . . . . . . . Catastrophic . | . . . . . . . . . Database Lockouts . | . . . . . . . . . Manual . | . . . . . . . . . Terminals . | . . . . . . . . . Fabricators . | . . . . . . . . . Repair Stations 2 | . 2 . . . . . . . Recycling Units . | . . . . . . . . . Scanalyzers . | . . . . . . . . . Garrison Access . | . . . . . . . . . Terminal Hacks . | . . . . . . . . . Fabricator Hacks . | . . . . . . . . . Repair Station Hacks 1 | . 1 . . . . . . . Scan Component 1 | . 1 . . . . . . . Recycling Unit Hacks . | . . . . . . . . . Scanalyzer . | . . . . . . . . . Garrison Access Hacks . | . . . . . . . . . Unauthorized Hacks . | . . . . . . . . . Terminals . | . . . . . . . . . Fabricators . | . . . . . . . . . Repair Stations . | . . . . . . . . . Recycling Units . | . . . . . . . . . Scanalyzers . | . . . . . . . . . Garrison Access . | . . . . . . . . . Data Cores Recovered . | . . . . . . . . . Used . | . . . . . . . . . Hacking Detections . | . . . . . . . . . Full Trace Events . | . . . . . . . . . Feedback Events . | . . . . . . . . . Feedback Blocked . | . . . . . . . . . Robot Schematics Acquired . | . . . . . . . . . Robots Built . | . . . . . . . . . Authchips . | . . . . . . . . . Time . | . . . . . . . . . Total Robot Build Rating . | . . . . . . . . . Part Schematics Acquired . | . . . . . . . . . Parts Built . | . . . . . . . . . Authchips . | . . . . . . . . . Time . | . . . . . . . . . Total Part Build Rating . | . . . . . . . . . Parts Repaired . | . . . . . . . . . Time . | . . . . . . . . . Parts Recycled . | . . . . . . . . . Recycled Matter . | . . . . . . . . . Retrieved Matter . | . . . . . . . . . Retrieved Components . | . . . . . . . . . Parts Scanalyzed . | . . . . . . . . . Part Schematics Acquired . | . . . . . . . . . Parts Damaged . | . . . . . . . . . Bothacking | -11 -10 -9 -8 -7 -7 -7 -6 -6 ------------ Run | Yrd Mat Mat Mat Fac Was Fac Fac Ext Used RIF Installer . | . . . . . . . . . Robots Hacked . | . . . . . . . . . Non-combat . | . . . . . . . . . Combat . | . . . . . . . . . Robot Hacks Applied . | . . . . . . . . . Relay Couplers Released 3 | . . . . . . . 3 . Machine Destruction 3 | . . . . . . . 3 . Fabnet Peak Effective % . | . . . . . . . . . Robots Rewired . | . . . . . . . . . Allies Hacked . | . . . . . . . . . Hacks Repelled . | . . . . . . . . . Allies | -11 -10 -9 -8 -7 -7 -7 -6 -6 -------- Run | Yrd Mat Mat Mat Fac Was Fac Fac Ext Total Allies 20 | . . . . . 20 . . . Largest Group 19 | . . . . . 19 2 . . Highest-Rated Group 475 | . . . . . 475 57 . . Highest-Rated Ally 35 | . . . . . 35 31 . . Total Orders . | . . . . . . . . . Ally Attacks 142 | . . . . . 130 12 . . Total Damage 4278 | . . . . . 4172 106 . . Kills 8 | . . . . . 8 . . . Allies Corrupted . | . . . . . . . . . Allies Melted . | . . . . . . . . . Intel | -11 -10 -9 -8 -7 -7 -7 -6 -6 ------- Run | Yrd Mat Mat Mat Fac Was Fac Fac Ext Robot Analysis Total . | . . . . . . . . . Derelict Logs Recovered . | . . . . . . . . . Drone Launches . | . . . . . . . . . Drone Recoveries . | . . . . . . . . . Exploration | -11 -10 -9 -8 -7 -7 -7 -6 -6 ------------- Run | Yrd Mat Mat Mat Fac Was Fac Fac Ext Turns Passed 4593 | 69 1143 810 177 101 554 598 612 529 Spaces Moved 2459 | 58 621 382 141 56 435 323 259 184 Core 130 | 12 . . . . 110 . 8 . Treads 203 | . . . . . 32 . 20 151 Legs 1755 | . 365 382 141 56 224 323 231 33 Wheels 302 | 46 256 . . . . . . . Hover 69 | . . . . . 69 . . . Flight . | . . . . . . . . . Fastest Speed 50 | 50 100 120 120 123 50 120 120 123 Average Speed 128 | 93 111 120 120 123 108 120 140 260 Slowest Speed 700 | 100 120 120 120 123 300 120 700 320 Overloaded Moves . | . . . . . . . . . Propulsion Burnouts . | . . . . . . . . . Robots Hopped . | . . . . . . . . . Cave-ins Triggered . | . . . . . . . . . Exploration Rate (%) 30 | 3 84 33 18 2 94 9 5 30 Regions Visited 8 Branch Regions 1 Pre-discovered Areas . | . . . . . . . . . Known Exits Taken 1 | . . . . . . 1 . . Unknown Exits Taken 5 | 1 1 1 1 . . . 1 . Scrap Searched . | . . . . . . . . . Spaces Dug . | . . . . . . . . . Terrain Destroyed 127 | . . 85 . . . 2 40 . Melee . | . . . . . . . . . Projectile 2 | . . . . . . 2 . . AOE 125 | . . 85 . . . . 40 . Terrain Rammed . | . . . . . . . . . Walls Destroyed . | . . . . . . . . . Machines Disabled . | . . . . . . . . . Actions | -11 -10 -9 -8 -7 -7 -7 -6 -6 --------- Run | Yrd Mat Mat Mat Fac Was Fac Fac Ext Total 3517 | 73 967 604 148 89 515 506 395 220 Wait 599 | . 230 109 5 29 25 155 31 15 Move 2452 | 57 620 381 140 56 434 322 258 184 Hop . | . . . . . . . . . Pick Up 77 | 10 22 9 1 . 15 3 11 6 Fast Attach 23 | . 3 6 . . 7 3 3 1 Attach 49 | 6 7 6 1 4 7 . 15 3 Detach 1 | . . 1 . . . . . . Swap 18 | . 4 7 . . 3 2 1 1 Drop 57 | . 15 9 . . 20 8 3 2 Fire 236 | . 66 74 . . 4 13 72 7 Melee . | . . . . . . . . . Ram . | . . . . . . . . . Kick 4 | . . 2 1 . . . 1 . Crush 1 | . . . . . . . . 1 Escape Stasis . | . . . . . . . . . Rewire . | . . . . . . . . . Trap . | . . . . . . . . . Miscellaneous . | . . . . . . . . . Route ------- -11/Scrapyard -10/Materials (discovered 5 exits: [*Mat x3] / [*Min x2]) -9/Materials -8/Materials -7/Factory -7/Waste -7/Factory -6/Factory -6/Extension History --------- Turn | Location | Event 34 | -11/Scrapyard | Discovered new exit (range 14) 70 | -11/Scrapyard | Entered Materials 131 | -10/Materials | Discovered new exit (range 13) 302 | -10/Materials | Build established: Mutant 302 | -10/Materials | Discovered new exit (range 16) 342 | -10/Materials | Discovered new exit (range 16) 626 | -10/Materials | Core integrity fell below 50% 812 | -10/Materials | Discovered new exit (range 5) 879 | -10/Materials | Discovered new exit (range 16) 1213 | -10/Materials | Entered another Materials area 1213 | -9/Materials | Evolved 2 slots: Propulsion x2 1516 | -9/Materials | Build established: Scavenger-Mutant 1552 | -9/Materials | Destroyed 7 combat bots 2005 | -9/Materials | Discovered new exit (range 15) 2023 | -9/Materials | Entered another Materials area 2023 | -8/Materials | Evolved 2 slots: Utility x2 2049 | -8/Materials | Lost 3 parts (1p1n1u) 2186 | -8/Materials | Discovered new exit (range 12) 2200 | -8/Materials | Entered Factory 2200 | -7/Factory | Evolved 2 slots: Utility x1, Weapon x1 2228 | -7/Factory | Lost 4 parts (1p1n2w) 2301 | -7/Factory | Sucked down chute 2301 | -7/Factory | Entered Waste 2302 | -7/Waste | Met a frightened Derelict 2316 | -7/Waste | Spotted C-40 Crusher 2341 | -7/Waste | Spotted C-40 Crusher 2343 | -7/Waste | Spotted C-40 Crusher 2343 | -7/Waste | Spotted C-40 Crusher 2372 | -7/Waste | Warlord forces began an assault 2380 | -7/Waste | Allies destroyed C-40 Crusher 2473 | -7/Waste | Spotted C-40 Crusher 2498 | -7/Waste | Destroyed C-40 Crusher 2507 | -7/Waste | Destroyed C-40 Crusher 2535 | -7/Waste | Lost 3 allies 2773 | -7/Waste | Discovered new exit (range 22) 2836 | -7/Waste | Build established: Scavenger-Skirmisher 2854 | -7/Waste | Identified exit to Factory 2855 | -7/Waste | Entered Factory 2855 | -7/Factory | Accompanied by 2 allies 3405 | -7/Factory | Discovered new exit (range 22) 3451 | -7/Factory | Identified exit to Factory 3453 | -7/Factory | Entered another Factory area 3453 | -6/Factory | Evolved 2 slots: Power x1, Utility x1 3491 | -6/Factory | Found Hvy. Reflective Plating 3628 | -6/Factory | Garrison activated, responded to threat 3694 | -6/Factory | System corruption reached 10% 3807 | -6/Factory | Lost 12 parts (3p4n3u2w) 3912 | -6/Factory | Lost 8 parts (1p2n3u2w) 4000 | -6/Factory | Discovered new exit (range 16) 4065 | -6/Factory | Entered Extension 4414 | -6/Extension | Build established: Scavenger-Tank 4546 | -6/Extension | Core integrity fell below 50% 4574 | -6/Extension | Spotted B-75 Beast 4579 | -6/Extension | Lost 6 parts (1p3n2w) 4592 | -6/Extension | Core integrity fell below 20% 4594 | -6/Extension | Destroyed by B-75 Beast with Magnetic Acceleration Cannon Last Messages --------------- 04510_ Carbon-fiber Leg destroyed. 04524_ Titanium Leg destroyed. 04545_ Imp. Heavy Machine Gun destroyed. 04546_ System corrupted: IFF burst signal emitted. 04548_ Hvy. Machine Gun destroyed. 04562_ G KAD:,LKSG#B#ZI%, SWN 04566_ Slammed into U-05 Engineer. 04576_ Machine disabled. 04577_ T8GV0JSIXDUO0YHD:EKF>Q:=:&SJV 04581_ C-30 ARC bursts open, deploying its payload. 04581_ S-27 Virus unfolds itself. 04581_ Lgt. Treads destroyed. 04582_ Lgt. Angular Momentum Engine destroyed. 04583_ Critical hit (Meltdown: +320). 04587_ Imp. Light Armor Plating destroyed. 04588_ Machine disabled. 04591_ Hvy. Flak Cannon destroyed. 04591_ ALERT: Hostiles spotted, dispatching reinforcements to Terminal E014. 04592_ DIC&H#BRS4A XKRUVLNK Map ----- +----------------------------------------------------+ | ############# ### [[ #??????????????????????? | | ????????????# #?? #??????????????????????? | | ????????????# #??? #??????????????????????? | | ????????????# #??? #??????????????????????? | | ????????????# #####+####??????????????????????? | | ????????????# #??????????????????????? | | ????????????# ##### #??????????????????????? | | ????????????# #???# #??????????????????????? | | ????????????# #???# #??????????????????????? | | ????????????# #???# #??????????????????????? | | ????????????# #???# #??????????????????????? | | ??????????? #???# #??????????????????????? | | ??????????### #???# #??????????????????????? | | ????????????####### #???# #??????????????????????? | | ??????????????????# #???# #??????????????????????? | | ??????????????????? #???#Y#??????????????????????? | | ??????????????????? T???# #??????????????????????? | | ???????????????????"#???#u#??????????????????????? | | ????????????????????????# #??????????????????????? | | ????????????????????????# #??????????????????????? | | ????????????????????????#Y#??????????????????????? | | ????????????????????????#g#??????????????????????? | | ????????????????????????# #??????????????????????? | | ????????????????????????# #??????????????????????? | | ????????????????????????#%#??????????????????????? | | ????????????????????????#@#??????????????????????? | | ??????????????????????? "s""?????????????????????? | | ??????????????????????# % ???????????????????? | | ??????????????????????# s Y% ?????????????????? | | ??????????????????????# s ???????????????? | | ??????????????????????# Y ??????????????? | | ?????????????????????? ???????????????? | | ?????????????????????? ??????????????? | | ????????????????????? ?????????????? | | ????????????????????? ??????????????? | | ???????????????????? t Rk???????????????? | | ????????????????????### BB ?????????????????? | | ??????????????????????# BB ?????????????????? | | ??????????????????????# ?????????????????? | | ??????????????????????# ???????????????????? | | ??????????????????????? ?????????????????????? | | ?????????????????????????????????????????????????? | | ?????????????????????????????????????????????????? | | ?????????????????????????????????????????????????? | | | | | | | | | | | | | +----------------------------------------------------+ Best States ------------- Heat Dissipation 42 Energy Generation 29 Energy Capacity 340 Matter Stores 300 Matter Capacity 300 Sight Range 22 Robot Scan Range 14 Terrain Scan Density 10 Armor Coverage 600 Resistance: TH 25 Evasion (%) 55 Recoil Reduction 2 Item Schematics ----------------- None Robot Schematics ------------------ None Fabricated ------------ Nothing Alien Tech Used ----------------- None Achievements -------------- None Challenges ------------ None Game ------ Seed InsulationThunderDoublenader Manual? 0 Play Time 00:47:48 Cumulative 12.1 hours Start 2024.04.07 @ 22:55:53 End 2024.04.07 @ 23:41:59 Sessions 1 Manual Loads 0 Difficulty Rogue Special Mode None Game No. 21 Rogue 21 Adventurer 0 Explorer 0 Win Type - Total 0 Types 0/0/0/0/0/0/0/0/0 Lore% 8 Gallery% 18 Achievement% 16 Wizard Run 0 Options --------- Layout 0 ASCII 0 Keyboard 0 Movement Mouse Keybinds 0 Fullscreen 2 Font 24/X11 Map View 76x50 Zoom Use 0% Tactical HUD 1 Map Filters NONE Filters NONE Steam 1 RUN: b999e583-8394-456d-9cd1-48e330385455